bitfinex/quotes_BTCUSD_20250904
["timestamp","ask_amount","ask_price","bid_price","bid_amount"]
[1756952570736,0.98395143,111830.0,111820.0,0.1524867]
[1756952571008,1.29535407,111830.0,111820.0,0.0015267]
[1756952571241,1.50321715,111830.0,111820.0,0.0015267]
[1756952572855,1.83907979,111830.0,111820.0,0.0015267]
[1756952573067,1.52767715,111830.0,111820.0,0.0015267]
[1756952574101,1.52767715,111830.0,111820.0,0.0005267]
[1756952574720,1.52867715,111830.0,111820.0,0.0005267]
[1756952578355,1.37771715,111830.0,111820.0,0.0005267]
[1756952578571,1.62115314,111830.0,111820.0,0.0005267]
[1756952579816,1.46963314,111830.0,111820.0,0.0005267]
[1756952580009,1.62111314,111830.0,111820.0,0.0005267]
[1756952585942,1.46963314,111830.0,111820.0,0.0005267]
[1756952586179,0.99814786,111830.0,111820.0,0.0005267]
[1756952586376,1.62095314,111830.0,111820.0,0.0005267]
[1756952590533,0.99814786,111830.0,111820.0,0.0005267]
[1756952590732,1.62095314,111830.0,111820.0,0.0005267]
[1756952592634,1.59649314,111830.0,111820.0,0.0005267]
[1756952593435,1.44517314,111830.0,111820.0,0.0005267]
[1756952593631,0.97372786,111830.0,111820.0,0.0005267]
[1756952593940,1.59653314,111830.0,111820.0,0.0005267]
[1756952600982,1.59637314,111830.0,111820.0,0.0005267]
[1756952607351,0.17892288,111780.0,111770.0,0.0937628]
[1756952607592,0.17892288,111780.0,111770.0,0.01380728]
[1756952607794,0.17892288,111780.0,111770.0,0.01583728]
[1756952607989,0.17892288,111780.0,111770.0,0.01877728]
[1756952608433,0.18114935,111780.0,111770.0,0.01877728]
[1756952609280,0.18114935,111780.0,111770.0,0.2039529]
[1756952609475,0.18114935,111780.0,111770.0,0.20171617]
[1756952609872,0.18114935,111780.0,111770.0,0.20771617]
[1756952610085,0.20580342,111790.0,111780.0,0.17892288]
[1756952610290,0.02689655,111790.0,111780.0,0.18612941]
[1756952610513,0.02689655,111790.0,111780.0,0.18389288]
[1756952610719,0.02689655,111790.0,111780.0,0.33493288]
[1756952611383,0.02689655,111790.0,111780.0,0.33893288]
[1756952611568,0.20580342,111790.0,111780.0,0.33893288]
[1756952612476,0.02689655,111790.0,111780.0,0.33893288]
[1756952612678,0.19666277,111800.0,111780.0,0.75437752]
[1756952612872,0.67641136,111800.0,111790.0,0.0717]
[1756952613090,0.67641136,111800.0,111790.0,0.2548732]
[1756952613324,0.67641136,111800.0,111790.0,0.25263687]
[1756952613729,0.33641136,111800.0,111790.0,0.25263687]
[1756952614605,0.33641136,111800.0,111790.0,0.25563687]
[1756952614808,0.23552397,111800.0,111790.0,0.25563687]
[1756952615545,0.23552397,111800.0,111790.0,0.25763687]
[1756952616695,0.21458515,111800.0,111790.0,0.25763687]
[1756952618343,0.03569428,111800.0,111790.0,0.25763687]
[1756952618721,0.21458515,111800.0,111790.0,0.25763687]
[1756952621355,0.03569428,111800.0,111790.0,0.25763687]
[1756952623001,0.21458515,111800.0,111790.0,0.25763687]
[1756952623212,0.21458515,111800.0,111790.0,0.40839687]
[1756952625336,0.03569428,111800.0,111790.0,0.40839687]
[1756952626198,0.02689378,111800.0,111790.0,0.40839687]
[1756952626342,0.19981588,111810.0,111800.0,0.17889087]
[1756952626554,0.22670648,111810.0,111800.0,0.181127]
[1756952626754,0.23559757,111810.0,111800.0,0.18085087]
[1756952627161,0.23559757,111810.0,111800.0,0.183087]
[1756952627566,0.03578169,111810.0,111800.0,0.188167]
[1756952627770,0.03578169,111810.0,111800.0,0.18593087]
[1756952628906,0.03578169,111810.0,111800.0,0.18693087]
[1756952629309,0.00889109,111810.0,111800.0,0.18693087]
[1756952629729,0.21470379,111820.0,111800.0,0.18693087]
[1756952629871,0.55470379,111820.0,111810.0,0.15068]
[1756952630081,0.55980379,111820.0,111810.0,0.15264]
[1756952630521,0.56889315,111820.0,111810.0,0.15264]
[1756952630726,0.56889315,111820.0,111810.0,0.33151487]
[1756952631131,0.56889315,111820.0,111810.0,0.33251487]
[1756952634235,0.56379315,111820.0,111810.0,0.33251487]
[1756952634856,0.56889315,111820.0,111810.0,0.33251487]
[1756952635706,0.56889315,111820.0,111810.0,0.1536]
[1756952635918,0.56379315,111820.0,111810.0,0.33247487]
[1756952636127,0.03597743,111820.0,111810.0,0.33247487]
[1756952637139,0.21483631,111820.0,111810.0,0.33247487]
[1756952637554,0.03597743,111820.0,111810.0,0.33555487]
[1756952637753,0.21483631,111820.0,111810.0,0.33555487]
[1756952638262,0.21483631,111820.0,111810.0,0.33243487]
[1756952638874,0.03597743,111820.0,111810.0,0.33243487]
[1756952639054,0.03597743,111820.0,111810.0,0.33551487]
[1756952639886,0.21483631,111820.0,111810.0,0.33243487]
[1756952640102,0.02688807,111820.0,111810.0,0.33551487]
[1756952640237,0.53090502,111830.0,111820.0,0.17885888]
[1756952640426,0.55976962,111830.0,111820.0,0.18081888]
[1756952640845,0.55976962,111830.0,111820.0,0.17885888]
[1756952641072,0.17885888,111820.0,111810.0,0.17987487]
[1756952641442,0.18197888,111820.0,111810.0,0.32947487]
[1756952641574,0.18395888,111820.0,111810.0,0.33143487]
[1756952641778,0.18395888,111820.0,111810.0,0.32947487]
[1756952641985,0.18395888,111820.0,111810.0,0.18083487]
[1756952642196,0.21171912,111820.0,111810.0,0.33143487]
[1756952642647,0.22051074,111820.0,111810.0,0.33143487]
[1756952643274,0.04165186,111820.0,111810.0,0.33143487]
[1756952643479,0.63595538,111820.0,111810.0,0.1506]
[1756952643720,0.63595538,111820.0,111810.0,0.1516]
[1756952643888,0.8150663,111820.0,111810.0,0.1506]
[1756952644090,0.17887487,111810.0,111800.0,0.17889087]
[1756952644445,0.21173511,111810.0,111800.0,0.32953793]
[1756952644671,0.03286024,111810.0,111800.0,0.33149793]
[1756952645372,0.03286024,111810.0,111800.0,0.33649793]
[1756952645787,0.03286024,111810.0,111800.0,0.18589793]
[1756952645989,0.03286024,111810.0,111800.0,0.33649793]
[1756952646845,0.02776024,111810.0,111800.0,0.33649793]
[1756952647199,0.36988142,111820.0,111810.0,0.17887487]
[1756952647424,0.37186142,111820.0,111810.0,0.33143487]
[1756952648473,0.39962166,111820.0,111810.0,0.33443487]
[1756952649361,0.39962166,111820.0,111810.0,0.33247487]
[1756952650201,0.18790254,111820.0,111810.0,0.33455487]
[1756952650713,0.18790254,111820.0,111810.0,0.33749487]
[1756952650970,0.17911092,111820.0,111810.0,0.33749487]
[1756952653027,0.17911092,111820.0,111810.0,0.33455487]
[1756952655491,0.17911092,111820.0,111810.0,0.33749487]
[1756952656904,0.17911092,111820.0,111810.0,0.33455487]
[1756952660210,0.18113092,111820.0,111810.0,0.33455487]
[1756952660349,0.18423092,111820.0,111810.0,0.33455487]
[1756952661142,0.18423092,111820.0,111810.0,0.18395487]
[1756952661341,0.18423092,111820.0,111810.0,0.33455487]
[1756952662130,0.17911092,111820.0,111810.0,0.33455487]
[1756952662331,0.18113092,111820.0,111810.0,0.33455487]
[1756952662552,0.18423092,111820.0,111810.0,0.33455487]
[1756952662697,0.17911092,111820.0,111810.0,0.33455487]
[1756952663135,0.18113092,111820.0,111810.0,0.33455487]
[1756952663342,0.18423092,111820.0,111810.0,0.33455487]
[1756952663540,0.18423092,111820.0,111810.0,0.33451487]
[1756952666154,0.17911092,111820.0,111810.0,0.33451487]
[1756952666330,0.17911092,111820.0,111810.0,0.40327487]
[1756952667710,0.17911092,111820.0,111810.0,0.40621487]
[1756952668171,0.17911092,111820.0,111810.0,0.82165951]
[1756952669524,0.17911092,111820.0,111810.0,0.71750454]
[1756952671181,0.17911092,111820.0,111810.0,0.71456454]
[1756952673212,0.17911092,111820.0,111810.0,0.71750454]
[1756952674059,0.17911092,111820.0,111810.0,0.71456454]
[1756952674234,0.17911092,111820.0,111810.0,0.56400454]
[1756952674442,0.17911092,111820.0,111810.0,0.71750454]
[1756952675092,0.17911092,111820.0,111810.0,0.40327487]
[1756952675409,0.17911092,111820.0,111810.0,0.71456454]
[1756952675590,0.17911092,111820.0,111810.0,0.71750454]
[1756952676139,0.17911092,111820.0,111810.0,0.71456454]
[1756952676844,0.17911092,111820.0,111810.0,0.71750454]
[1756952678824,0.17911092,111820.0,111810.0,0.74438747]
[1756952680161,0.17911092,111820.0,111810.0,0.4330978]
[1756952680332,0.17911092,111820.0,111810.0,0.74140747]
[1756952681295,0.18123092,111820.0,111810.0,0.74140747]
[1756952681502,0.18436092,111820.0,111810.0,0.74140747]
[1756952683140,0.18436092,111820.0,111810.0,0.2775178]
[1756952683314,0.18436092,111820.0,111810.0,0.73932747]
[1756952683552,0.18436092,111820.0,111810.0,0.58880747]
[1756952683893,0.70226971,111820.0,111810.0,0.22228]
[1756952684124,1.01355938,111820.0,111810.0,0.07176]
[1756952684302,0.70226971,111820.0,111810.0,0.22228]
[1756952684711,0.70226971,111820.0,111810.0,0.07176]
[1756952684946,0.70226971,111820.0,111810.0,0.22228]
[1756952685157,1.04044586,111820.0,111810.0,0.22228]
[1756952685800,1.04044586,111820.0,111810.0,0.07176]
[1756952685801,1.04182846,111820.0,111810.0,0.07176]
[1756952686014,1.0695887,111820.0,111810.0,0.22228]
[1756952686244,1.0695887,111820.0,111810.0,0.07176]
[1756952686447,1.0695887,111820.0,111810.0,0.22228]
[1756952687618,1.0695887,111820.0,111810.0,0.07176]
[1756952687927,1.0695887,111820.0,111810.0,0.22228]
[1756952693083,0.75829903,111820.0,111810.0,0.22228]
[1756952694348,0.75829903,111820.0,111810.0,0.07176]
[1756952694581,0.75829903,111820.0,111810.0,0.22228]
[1756952695774,0.2112474,111820.0,111810.0,0.40115487]
[1756952695985,0.2112474,111820.0,111810.0,0.40319487]
[1756952696198,0.52253707,111820.0,111810.0,0.40319487]
[1756952696805,0.2059974,111820.0,111810.0,0.40319487]
[1756952697365,0.2112474,111820.0,111810.0,0.40319487]
[1756952699149,0.03213648,111820.0,111810.0,0.40319487]
[1756952700401,0.21099536,111820.0,111810.0,0.40115487]
[1756952700626,0.52228503,111820.0,111810.0,0.40115487]
[1756952701618,0.34342615,111820.0,111810.0,0.40115487]
[1756952704027,0.52228503,111820.0,111810.0,0.40115487]
[1756952704506,0.8335747,111820.0,111810.0,0.22224]
[1756952704710,0.8601731,111820.0,111810.0,0.22224]
[1756952705119,0.54888343,111820.0,111810.0,0.22224]
[1756952706019,0.59002914,111820.0,111810.0,0.22224]
[1756952706955,0.59002914,111820.0,111810.0,0.07176]
[1756952707196,0.59002914,111820.0,111810.0,0.22224]
[1756952707426,0.27873947,111820.0,111810.0,0.22224]
[1756952707646,0.54888343,111820.0,111810.0,0.22224]
[1756952708576,0.54888343,111820.0,111810.0,0.40111487]
[1756952711133,0.58917093,111820.0,111810.0,0.40111487]
[1756952713778,0.9004606,111820.0,111810.0,0.22224]
[1756952713995,0.58917093,111820.0,111810.0,0.22224]
[1756952716833,0.58917093,111820.0,111810.0,0.04312908]
[1756952717505,0.58917093,111820.0,111800.0,0.2476979]
[1756952717754,0.58917093,111820.0,111810.0,0.15044]
[1756952717986,0.56257253,111820.0,111810.0,0.1238416]
[1756952718535,0.58695439,111820.0,111810.0,0.1238416]
[1756952719195,0.58695439,111820.0,111810.0,0.1258416]
[1756952719605,0.58695439,111820.0,111810.0,0.1268416]
[1756952722303,0.58695439,111820.0,111810.0,0.003]
[1756952722503,0.58695439,111820.0,111810.0,0.15344]
[1756952725559,0.54666689,111820.0,111810.0,0.15344]
[1756952727839,0.54666689,111820.0,111810.0,0.003]
[1756952728041,0.54666689,111820.0,111810.0,0.1534]
[1756952729490,0.23537722,111820.0,111810.0,0.1534]
[1756952729752,0.65057554,111820.0,111810.0,0.003]
[1756952729973,1.22448918,111820.0,111810.0,0.003]
[1756952730208,1.15718319,111820.0,111810.0,0.003]
[1756952732864,1.30758319,111820.0,111810.0,0.003]
[1756952733330,0.89238487,111820.0,111810.0,0.003]
[1756952733558,1.30758319,111820.0,111810.0,0.003]
[1756952734043,1.39949918,111820.0,111810.0,0.003]
[1756952740749,1.46825918,111820.0,111810.0,0.003]
[1756952742881,1.46825918,111820.0,111810.0,0.002]
[1756952743091,0.64851369,111810.0,111800.0,4.706e-05]
[1756952743257,1.33040986,111810.0,111800.0,4.706e-05]
[1756952743465,1.45356869,111810.0,111800.0,4.706e-05]
[1756952743692,1.48339602,111810.0,111800.0,4.706e-05]
[1756952744016,1.33299602,111810.0,111800.0,4.706e-05]
[1756952744231,1.48339602,111810.0,111800.0,4.706e-05]
[1756952744475,1.48339602,111810.0,111800.0,0.00104706]
[1756952744874,1.81293434,111810.0,111800.0,1e-08]
[1756952745108,0.17892288,111780.0,111770.0,0.0133369]
[1756952745324,0.17892288,111780.0,111770.0,0.01380728]
[1756952745325,0.76311901,111780.0,111770.0,0.01380728]
[1756952745523,0.74593637,111780.0,111770.0,0.01380728]
[1756952745765,0.92323864,111780.0,111770.0,0.01380728]
[1756952746158,0.77283864,111780.0,111770.0,0.01380728]
[1756952746279,0.94417746,111780.0,111770.0,0.01380728]
[1756952746504,0.94417746,111780.0,111770.0,0.01580728]
[1756952746870,0.79377746,111780.0,111770.0,0.01580728]
[1756952747093,0.94417746,111780.0,111770.0,0.01580728]
[1756952747300,0.94417746,111780.0,111770.0,0.01780728]
[1756952747546,0.79377746,111780.0,111770.0,0.01780728]
[1756952747767,0.88930828,111780.0,111770.0,0.01780728]
[1756952747986,0.3494363,111780.0,111770.0,0.01780728]
[1756952748197,0.91503462,111780.0,111770.0,0.01780728]
[1756952748401,0.94417746,111780.0,111770.0,0.01780728]
[1756952749018,0.88569345,111780.0,111770.0,0.01780728]
[1756952749192,1.03609345,111780.0,111770.0,0.01580728]
[1756952749394,1.03609345,111780.0,111770.0,0.01380728]
[1756952749808,1.03609345,111780.0,111770.0,0.01480728]
[1756952750786,1.07684276,111780.0,111770.0,0.01480728]
[1756952751722,0.98492677,111780.0,111770.0,0.01696728]
[1756952751943,0.95075393,111780.0,111770.0,0.01696728]
[1756952752154,0.95578393,111780.0,111770.0,0.01480728]
[1756952752358,0.98492677,111780.0,111770.0,0.01480728]
[1756952752572,0.56972845,111780.0,111770.0,0.01480728]
[1756952752785,0.98492677,111780.0,111770.0,0.01480728]
[1756952754080,1.07684276,111780.0,111770.0,0.01480728]
[1756952759102,1.07784276,111780.0,111770.0,0.01480728]
[1756952759512,1.07684276,111780.0,111770.0,0.01380728]
[1756952759722,1.07784276,111780.0,111770.0,0.01380728]
[1756952761845,1.07784276,111780.0,111750.0,0.00228]
[1756952761846,0.53989372,111760.0,111750.0,0.00228]
[1756952762060,1.80242518,111760.0,111750.0,0.00228]
[1756952762273,1.85107668,111760.0,111750.0,0.00228]
[1756952762483,1.68409158,111760.0,111750.0,0.00228]
[1756952762629,1.83803949,111760.0,111750.0,0.00228]
[1756952762835,1.68767949,111760.0,111750.0,0.00444]
[1756952763032,1.83803949,111760.0,111750.0,0.00444]
[1756952763236,0.7648188,111760.0,111750.0,0.00751]
[1756952763439,1.18001712,111760.0,111750.0,0.00751]
[1756952763650,1.20095594,111760.0,111750.0,0.00751]
[1756952763845,1.20195594,111760.0,111750.0,0.00751]
[1756952764053,1.05159594,111760.0,111750.0,0.00751]
[1756952764642,0.79594529,111760.0,111750.0,0.00751]
[1756952765084,0.64558529,111760.0,111750.0,0.00751]
[1756952765286,0.64558529,111760.0,111750.0,0.18648091]
[1756952765680,0.64558529,111760.0,111750.0,0.00751]
[1756952766546,1.06078361,111760.0,111750.0,0.00751]
[1756952766758,0.3747144,111760.0,111750.0,0.18871804]
[1756952766969,0.5536693,111760.0,111750.0,0.18648091]
[1756952769084,0.5536693,111760.0,111750.0,0.00751]
[1756952769301,0.5536693,111760.0,111750.0,0.00974713]
[1756952769775,0.96886762,111760.0,111750.0,0.00974713]
[1756952769986,0.96886762,111760.0,111750.0,0.00444]
[1756952770417,0.99586402,111760.0,111750.0,0.00444]
[1756952771570,1.00103402,111760.0,111750.0,0.00544]
[1756952771773,1.00003402,111760.0,111750.0,0.00544]
[1756952772679,0.99644611,111760.0,111750.0,0.00544]
[1756952772919,0.99644611,111760.0,111750.0,0.00644]
[1756952774559,0.99127611,111760.0,111750.0,0.00644]
[1756952774919,0.57607779,111760.0,111750.0,0.00644]
[1756952775585,0.99127611,111760.0,111750.0,0.00644]
[1756952776011,0.57607779,111760.0,111750.0,0.00945]
[1756952776221,0.99127611,111760.0,111750.0,0.00945]
[1756952776430,0.99127611,111760.0,111750.0,0.00644]
[1756952776629,0.57607779,111760.0,111750.0,0.00644]
[1756952776858,0.99644611,111760.0,111750.0,0.00644]
[1756952777264,0.99644611,111760.0,111750.0,0.00428]
[1756952778368,1.0883621,111760.0,111750.0,0.00428]
[1756952778580,1.77497925,111760.0,111750.0,0.00428]
[1756952779034,1.81708755,111760.0,111750.0,0.00428]
[1756952779691,1.81708755,111760.0,111750.0,0.00228]
[1756952780149,1.8337475,111760.0,111750.0,0.00228]
[1756952781448,0.61512407,111740.0,111730.0,0.00125092]
[1756952781627,0.85740006,111740.0,111730.0,0.00125092]
[1756952781836,0.9187093,111740.0,111730.0,0.00125092]
[1756952782046,0.99039081,111740.0,111730.0,0.00125092]
[1756952782671,0.99039081,111740.0,111730.0,0.00225092]
[1756952782916,0.99085927,111740.0,111730.0,0.00225092]
[1756952783348,1.03146189,111740.0,111730.0,0.00225092]
[1756952783840,1.03146189,111740.0,111730.0,0.00325092]
[1756952788236,0.88110189,111740.0,111730.0,0.00325092]
[1756952788448,1.03146189,111740.0,111730.0,0.00325092]
[1756952789322,0.88110189,111740.0,111730.0,0.00325092]
[1756952789534,1.03146189,111740.0,111730.0,0.00325092]
[1756952790335,0.88110189,111740.0,111730.0,0.00325092]
[1756952790577,1.03146189,111740.0,111730.0,0.00325092]
[1756952790984,0.61626357,111740.0,111730.0,0.00325092]
[1756952791190,1.03146189,111740.0,111730.0,0.00325092]
[1756952791610,1.24020625,111740.0,111730.0,0.00325092]
[1756952792393,1.55217759,111740.0,111730.0,0.00325092]
[1756952793358,1.55213759,111740.0,111730.0,0.00325092]
[1756952798116,0.46590357,111740.0,111730.0,0.00325092]
[1756952798327,1.21316985,111740.0,111730.0,0.00325092]
[1756952798802,1.06284985,111740.0,111730.0,0.00325092]
[1756952798978,1.21316985,111740.0,111730.0,0.00325092]
[1756952799392,1.24016625,111740.0,111730.0,0.00325092]
[1756952800235,1.08984625,111740.0,111730.0,0.00325092]
[1756952800474,0.65308818,111740.0,111730.0,0.00816092]
[1756952800655,0.80340818,111740.0,111730.0,0.00816092]
[1756952800881,0.824347,111740.0,111730.0,0.00816092]
[1756952801096,0.674027,111740.0,111730.0,0.00816092]
[1756952801313,0.824347,111740.0,111730.0,0.00816092]
[1756952801519,1.11537952,111740.0,111730.0,0.00816092]
[1756952801736,1.54552567,111740.0,111730.0,0.00325092]
[1756952801942,1.57252207,111740.0,111730.0,0.00325092]
[1756952803446,0.51194516,111710.0,111700.0,0.00012438]
[1756952803655,0.75418115,111710.0,111700.0,0.00307438]
[1756952803897,0.75418115,111710.0,111700.0,0.00503438]
[1756952804527,0.75418115,111710.0,111700.0,0.00703438]
[1756952805511,0.75418115,111710.0,111700.0,0.00903438]
[1756952806813,0.79526655,111710.0,111700.0,0.00903438]
[1756952807030,0.79526655,111710.0,111700.0,0.00608438]
[1756952808259,0.79526655,111710.0,111680.0,0.00295]
[1756952808260,0.17906706,111690.0,111680.0,0.00295]
[1756952808466,0.17906706,111690.0,111680.0,0.15327]
[1756952808467,0.4910384,111690.0,111680.0,0.15327]
[1756952808692,0.4910384,111690.0,111680.0,0.15523]
[1756952808878,0.17906706,111690.0,111680.0,0.15523]
[1756952809021,0.17906706,111690.0,111680.0,0.00491]
[1756952809246,0.17906706,111690.0,111680.0,0.33431309]
[1756952809688,0.17953524,111690.0,111680.0,0.33431309]
[1756952810300,0.00046818,111690.0,111680.0,0.33431309]
[1756952810505,0.00046818,111690.0,111680.0,0.65328443]
[1756952810712,0.00046818,111690.0,111680.0,0.34131309]
[1756952810868,0.17953524,111690.0,111680.0,0.65328443]
[1756952811072,0.00046818,111690.0,111680.0,0.65328443]
[1756952811930,0.00046818,111690.0,111680.0,0.19099309]
[1756952812133,0.00046818,111690.0,111680.0,0.65328443]
[1756952812343,0.40435551,111690.0,111680.0,0.01191]
[1756952812545,0.40435551,111690.0,111680.0,0.50520296]
[1756952812546,0.00046818,111690.0,111680.0,0.50520296]
[1756952812757,0.17953524,111690.0,111680.0,0.32388134]
[1756952812960,0.18176171,111690.0,111680.0,0.15928]
[1756952813181,0.17953524,111690.0,111680.0,0.15928]
[1756952813376,0.49150658,111690.0,111680.0,0.15928]
[1756952814128,0.49150658,111690.0,111680.0,0.00896]
[1756952814129,0.29239005,111690.0,111680.0,0.00896]
[1756952814355,0.60436139,111690.0,111680.0,0.00896]
[1756952814577,1.07197273,111690.0,111680.0,0.007]
[1756952814800,0.78914423,111690.0,111680.0,0.007]
[1756952815002,1.44111557,111690.0,111680.0,0.007]
[1756952815228,1.46930742,111690.0,111680.0,0.007]
[1756952815634,1.46930742,111690.0,111680.0,0.004]
[1756952816612,1.31898742,111690.0,111680.0,0.004]
[1756952816794,0.84536474,111690.0,111680.0,0.00596]
[1756952817000,1.12287324,111690.0,111680.0,0.00596]
[1756952817271,1.12819324,111690.0,111680.0,0.002]
[1756952817554,0.84536474,111690.0,111680.0,0.003]
[1756952817807,1.31898742,111690.0,111680.0,0.003]
[1756952818017,1.00701608,111690.0,111680.0,0.001]
[1756952818222,1.00701608,111690.0,111680.0,0.002]
[1756952818428,1.15733608,111690.0,111680.0,0.002]
[1756952818831,1.12819324,111690.0,111680.0,0.002]
[1756952819262,1.10000139,111690.0,111680.0,0.002]
[1756952819872,0.63239005,111690.0,111680.0,0.00396]
[1756952820075,0.94436139,111690.0,111680.0,0.00691]
[1756952820721,0.94436139,111690.0,111680.0,0.33631309]
[1756952820722,0.51953524,111690.0,111680.0,0.33631309]
[1756952821113,0.00046818,111690.0,111680.0,0.71712443]
[1756952823959,0.00046818,111690.0,111680.0,1.12101176]
[1756952826095,0.00046818,111690.0,111680.0,0.97069176]
[1756952826305,0.00046818,111690.0,111680.0,1.12101176]
[1756952826721,0.00046818,111690.0,111680.0,1.11901176]
[1756952827144,0.00046818,111690.0,111680.0,1.12101176]
[1756952827346,0.00046818,111690.0,111680.0,1.12001176]
[1756952827548,0.00046818,111690.0,111680.0,1.12301176]
[1756952827957,0.00046818,111690.0,111680.0,1.12601176]
[1756952828382,0.00046818,111690.0,111680.0,0.97569176]
[1756952828597,0.07354631,111730.0,111720.0,0.17901897]
[1756952828793,0.07354631,111730.0,111720.0,0.64551504]
[1756952829000,0.07354631,111730.0,111720.0,0.33130597]
[1756952829215,0.07354631,111730.0,111720.0,0.64327731]
[1756952829430,0.00488,111730.0,111720.0,0.64327731]
[1756952829618,0.00488,111730.0,111720.0,0.33130597]
[1756952829933,0.65490134,111740.0,111730.0,0.17900295]
[1756952830176,0.52386693,111740.0,111730.0,0.17912295]
[1756952830371,0.00488,111740.0,111730.0,0.17712295]
[1756952831169,0.17900295,111730.0,111720.0,4.7e-05]
[1756952831379,0.49097429,111730.0,111720.0,0.150327]
[1756952831599,0.49585429,111730.0,111720.0,0.150327]
[1756952832043,0.52404614,111730.0,111720.0,0.150327]
[1756952832472,0.63690095,111730.0,111720.0,0.150407]
[1756952833760,0.29673776,111730.0,111720.0,0.152407]
[1756952834001,0.6087091,111730.0,111720.0,0.33142597]
[1756952834475,0.29673776,111730.0,111720.0,0.152447]
[1756952834715,0.29773776,111730.0,111720.0,0.152447]
[1756952835402,0.29773776,111730.0,111720.0,0.152407]
[1756952835622,0.6097091,111730.0,111720.0,0.15464473]
[1756952835813,0.6097091,111730.0,111720.0,0.3336637]
[1756952836039,0.6097091,111730.0,111720.0,0.33142597]
[1756952836483,0.6097091,111730.0,111720.0,0.002047]
[1756952836702,0.6097091,111730.0,111720.0,0.152407]
[1756952836910,0.6097091,111730.0,111720.0,0.15676473]
[1756952836911,0.49685429,111730.0,111720.0,0.15676473]
[1756952837567,0.49685429,111730.0,111720.0,0.3357837]
[1756952837751,0.49685429,111730.0,111720.0,0.33354597]
[1756952838889,0.49685429,111730.0,111720.0,0.152407]
[1756952839087,0.49685429,111730.0,111720.0,0.15464473]
[1756952840236,0.18488295,111730.0,111720.0,0.33354597]
[1756952840685,0.49685429,111730.0,111720.0,0.33354597]
[1756952840891,0.00588,111730.0,111720.0,0.33354597]
[1756952841095,0.31785134,111730.0,111720.0,0.33354597]
[1756952841299,0.49685429,111730.0,111720.0,0.33354597]
[1756952841503,0.001,111730.0,111720.0,0.33354597]
[1756952841707,0.001,111730.0,111720.0,0.64854731]
[1756952842928,0.001,111730.0,111720.0,0.18318597]
[1756952843138,0.00588,111730.0,111720.0,0.33342597]
[1756952843349,0.001,111730.0,111720.0,0.33342597]
[1756952844994,0.00295,111730.0,111720.0,0.33342597]
[1756952845214,0.001,111730.0,111720.0,0.33342597]
[1756952845424,0.00588,111730.0,111720.0,0.33342597]
[1756952846213,0.001,111730.0,111720.0,0.33342597]
[1756952846612,0.00588,111730.0,111720.0,0.33342597]
[1756952846985,0.001,111730.0,111720.0,0.64539731]
[1756952848935,0.001,111730.0,111720.0,0.33342597]
[1756952849165,0.001,111730.0,111720.0,0.64539731]
[1756952849597,0.001,111730.0,111720.0,0.33342597]
[1756952849819,0.001,111730.0,111720.0,0.64842731]
[1756952850547,0.001,111730.0,111720.0,0.64539731]
[1756952850762,0.49685429,111730.0,111720.0,0.002047]
[1756952850967,0.49685429,111730.0,111720.0,0.152607]
[1756952851587,0.2130748,111730.0,111720.0,0.152607]
[1756952851830,0.52504614,111730.0,111720.0,0.152607]
[1756952852779,0.52504614,111730.0,111720.0,0.33162597]
[1756952852998,0.03407185,111730.0,111720.0,0.33162597]
[1756952853207,0.52504614,111730.0,111720.0,0.33162597]
[1756952853627,0.2130748,111730.0,111720.0,0.33162597]
[1756952854387,0.00588,111730.0,111720.0,0.33162597]
[1756952854775,0.00588,111730.0,111720.0,0.33374597]
[1756952855423,0.18710942,111730.0,111720.0,0.33374597]
[1756952855634,0.18488295,111730.0,111720.0,0.33374597]
[1756952856080,0.00588,111730.0,111720.0,0.33374597]
[1756952856507,0.18710942,111730.0,111720.0,0.33374597]
[1756952856719,0.18488295,111730.0,111720.0,0.33162597]
[1756952857561,0.2130748,111730.0,111720.0,0.33162597]
[1756952860811,0.74175108,111730.0,111720.0,0.002047]
[1756952861019,1.11089392,111730.0,111720.0,0.153087]
[1756952862078,1.11089392,111730.0,111720.0,0.002047]
[1756952862284,1.11089392,111730.0,111720.0,0.153087]
[1756952863345,0.69507245,111730.0,111720.0,0.153087]
[1756952863574,1.26193392,111730.0,111720.0,0.002047]
[1756952863795,1.32568439,111730.0,111720.0,0.002047]
[1756952864195,0.59485647,111710.0,111700.0,0.1507802]
[1756952864525,0.62087874,111710.0,111700.0,0.1507802]
[1756952864734,0.17905102,111700.0,111690.0,0.24786706]
[1756952864954,0.20800329,111700.0,111690.0,0.21988]
[1756952865153,0.21015329,111700.0,111690.0,0.40109706]
[1756952865356,0.21015329,111700.0,111690.0,0.25001706]
[1756952865559,0.21015329,111700.0,111690.0,0.40109706]
[1756952865768,0.18413102,111700.0,111690.0,0.40109706]
[1756952865965,0.00508,111700.0,111690.0,0.40109706]
[1756952866184,0.00215,111700.0,111690.0,0.40109706]
[1756952866394,0.68970246,111710.0,111690.0,0.40109706]
[1756952866601,0.27095099,111710.0,111690.0,0.40109706]
[1756952866738,0.29188981,111710.0,111700.0,0.17905102]
[1756952866950,0.29188981,111710.0,111700.0,0.18120102]
[1756952867158,0.29696981,111710.0,111700.0,0.33232102]
[1756952867608,0.29696981,111710.0,111700.0,0.15327]
[1756952867814,0.29696981,111710.0,111700.0,0.33232102]
[1756952867972,0.29696981,111710.0,111700.0,0.15327]
[1756952868180,0.29696981,111710.0,111700.0,0.33332102]
[1756952868602,0.29696981,111710.0,111700.0,0.33117102]
[1756952869090,0.11793481,111710.0,111700.0,0.33332102]
[1756952869306,0.12016128,111710.0,111700.0,0.33332102]
[1756952869636,0.11793481,111710.0,111700.0,0.33432102]
[1756952870065,0.29696981,111710.0,111700.0,0.33432102]
[1756952870462,0.60684497,111730.0,111710.0,0.17903481]
[1756952870747,0.51901911,111720.0,111710.0,0.18127274]
[1756952870959,0.53995793,111720.0,111710.0,0.33458274]
[1756952871163,0.53995793,111720.0,111710.0,0.33234481]
[1756952871289,0.51901911,111720.0,111710.0,0.33234481]
[1756952871475,0.53995793,111720.0,111710.0,0.33234481]
[1756952872339,0.53995793,111720.0,111690.0,0.0688]
[1756952872340,0.19997382,111710.0,111690.0,0.0688]
[1756952872547,0.70771128,111710.0,111700.0,0.15116]
[1756952872749,0.70986128,111710.0,111700.0,0.15116]
[1756952873128,0.71279128,111710.0,111700.0,0.15116]
[1756952873532,0.29696981,111710.0,111700.0,0.15116]
[1756952873762,0.29696981,111710.0,111700.0,0.15339813]
[1756952874123,0.29696981,111710.0,111700.0,0.15439813]
[1756952874595,0.29696981,111710.0,111700.0,0.15539813]
[1756952875104,0.71279128,111710.0,111700.0,0.15539813]
[1756952875342,0.71279128,111710.0,111700.0,0.15316]
[1756952875523,0.29660981,111710.0,111700.0,0.15316]
[1756952875665,0.71243128,111710.0,111700.0,0.002]
[1756952875890,1.19951238,111710.0,111700.0,0.002]